[Event "*** Titled Tuesday Blitz"]
[Site "Chess.com"]
[Date "2019.10.01"]
[Round "10"]
[White "VladDobrov"]
[Black "AntonSmirnov"]
[Result "1/2-1/2"]
[WhiteElo "2963"]
[BlackElo "2920"]
[TimeControl "180+2"]
[EndTime "15:31:00 PDT"]
[Termination "Game drawn - insufficient material"]

1. d4 {[%clk 0:03:01.9]} 1... d5 {[%clk 0:03:00.2]} 2. c4 {[%clk 0:03:03.8]}
2... c6 {[%clk 0:02:59.1]} 3. Nc3 {[%clk 0:02:51.9]} 3... dxc4 {[%clk
0:02:58.9]} 4. e3 {[%clk 0:02:53.3]} 4... b5 {[%clk 0:02:59.8]} 5. a4 {[%clk
0:02:54.9]} 5... b4 {[%clk 0:03:00.7]} 6. Ne4 {[%clk 0:02:56.5]} 6... Qd5 {[%clk
0:03:01.7]} 7. Nd2 {[%clk 0:02:57.9]} 7... c3 {[%clk 0:03:03]} 8. Ndf3 {[%clk
0:02:59.4]} 8... cxb2 {[%clk 0:03:01.6]} 9. Bxb2 {[%clk 0:03:01.3]} 9... Nf6
{[%clk 0:03:02.6]} 10. Ne2 {[%clk 0:03:01.2]} 10... e6 {[%clk 0:03:03.2]} 11.
Nf4 {[%clk 0:03:02.5]} 11... Qa5 {[%clk 0:03:04]} 12. Bc4 {[%clk 0:02:48.9]}
12... Bd6 {[%clk 0:03:03.9]} 13. Nd3 {[%clk 0:02:38.3]} 13... Nbd7 {[%clk
0:03:04.2]} 14. O-O {[%clk 0:02:37.4]} 14... O-O {[%clk 0:03:04.3]} 15. Re1
{[%clk 0:02:35.3]} 15... Ne4 {[%clk 0:02:59.3]} 16. Nde5 {[%clk 0:02:27.4]}
16... Nxe5 {[%clk 0:02:54.9]} 17. dxe5 {[%clk 0:02:25.6]} 17... Be7 {[%clk
0:02:52.1]} 18. Nd4 {[%clk 0:02:27]} 18... Bb7 {[%clk 0:02:50.6]} 19. Nb3 {[%clk
0:02:28.1]} 19... Qc7 {[%clk 0:02:47.4]} 20. Qc2 {[%clk 0:02:26.7]} 20... Nc3
{[%clk 0:02:14.5]} 21. Bxc3 {[%clk 0:02:26.7]} 21... bxc3 {[%clk 0:02:16.4]} 22.
Qxc3 {[%clk 0:02:28.4]} 22... a5 {[%clk 0:02:17.9]} 23. Red1 {[%clk 0:02:21.1]}
23... Bb4 {[%clk 0:02:18.8]} 24. Qb2 {[%clk 0:02:22.6]} 24... Rad8 {[%clk
0:02:15.8]} 25. f4 {[%clk 0:02:20]} 25... c5 {[%clk 0:02:16.3]} 26. Qc2 {[%clk
0:02:10.3]} 26... g6 {[%clk 0:02:12.5]} 27. Kf2 {[%clk 0:02:07.7]} 27... Qc6
{[%clk 0:02:11.7]} 28. Kg1 {[%clk 0:02:04.9]} 28... Qe4 {[%clk 0:02:12.5]} 29.
Qxe4 {[%clk 0:02:01.1]} 29... Bxe4 {[%clk 0:02:14.4]} 30. Rxd8 {[%clk
0:01:49.2]} 30... Rxd8 {[%clk 0:02:14.9]} 31. Kf2 {[%clk 0:01:50.6]} 31... h5
{[%clk 0:02:11.3]} 32. h4 {[%clk 0:01:48.2]} 32... Kg7 {[%clk 0:02:10.5]} 33. g3
{[%clk 0:01:48.4]} 33... Kf8 {[%clk 0:02:00.4]} 34. Rc1 {[%clk 0:01:44.8]} 34...
Ke7 {[%clk 0:01:55.6]} 35. Bb5 {[%clk 0:01:41.3]} 35... Rc8 {[%clk 0:01:54.6]}
36. Ke2 {[%clk 0:01:37.8]} 36... Bd5 {[%clk 0:01:53.4]} 37. Bc4 {[%clk
0:01:37.3]} 37... Bc6 {[%clk 0:01:53.5]} 38. Ba6 {[%clk 0:01:34]} 38... Rc7
{[%clk 0:01:45.9]} 39. Bb5 {[%clk 0:01:24.2]} 39... Bd5 {[%clk 0:01:45]} 40. Bc4
{[%clk 0:01:25.6]} 40... Bb7 {[%clk 0:01:43.9]} 41. Bb5 {[%clk 0:01:26.1]} 41...
Bd5 {[%clk 0:01:38.8]} 42. Bc4 {[%clk 0:01:26.8]} 42... Rc8 {[%clk 0:01:38]} 43.
Kd3 {[%clk 0:01:26.4]} 43... Bf3 {[%clk 0:01:33.4]} 44. e4 {[%clk 0:01:25.6]}
44... Rd8+ {[%clk 0:01:31.6]} 45. Ke3 {[%clk 0:01:27]} 45... Bg2 {[%clk
0:01:32.3]} 46. Be2 {[%clk 0:01:27.1]} 46... Rc8 {[%clk 0:01:26.9]} 47. Rc4
{[%clk 0:01:27.5]} 47... Rc7 {[%clk 0:01:25.8]} 48. Kf2 {[%clk 0:01:27]} 48...
Bh3 {[%clk 0:01:26.9]} 49. Nd4 {[%clk 0:01:26.1]} 49... Rd7 {[%clk 0:01:20.7]}
50. Nc6+ {[%clk 0:01:19.7]} 50... Kf8 {[%clk 0:01:21.3]} 51. Nxb4 {[%clk
0:01:20.9]} 51... cxb4 {[%clk 0:01:22.1]} 52. Rc8+ {[%clk 0:01:20]} 52... Kg7
{[%clk 0:01:17.9]} 53. Ra8 {[%clk 0:01:21.9]} 53... Rd2 {[%clk 0:01:15.6]} 54.
Ke3 {[%clk 0:01:23.2]} 54... Ra2 {[%clk 0:01:16.7]} 55. Rxa5 {[%clk 0:01:24]}
55... Ra3+ {[%clk 0:01:11.8]} 56. Kf2 {[%clk 0:01:24.5]} 56... Ra2 {[%clk
0:01:03.4]} 57. Ke3 {[%clk 0:01:24.6]} 57... Bg2 {[%clk 0:00:57.5]} 58. Bc4
{[%clk 0:01:16.3]} 58... Ra3+ {[%clk 0:00:57.6]} 59. Kd4 {[%clk 0:01:17.7]}
59... Rxg3 {[%clk 0:00:50.7]} 60. Rb5 {[%clk 0:01:17.2]} 60... Rf3 {[%clk
0:00:51.8]} 61. Rxb4 {[%clk 0:01:17.5]} 61... Rxf4 {[%clk 0:00:53.2]} 62. Bd3
{[%clk 0:01:19]} 62... Rxh4 {[%clk 0:00:54.1]} 63. a5 {[%clk 0:01:20.2]} 63...
Rh1 {[%clk 0:00:54.2]} 64. Ra4 {[%clk 0:01:21.6]} 64... h4 {[%clk 0:00:32.2]}
65. a6 {[%clk 0:01:19.5]} 65... h3 {[%clk 0:00:32.9]} 66. a7 {[%clk 0:01:18.9]}
66... h2 {[%clk 0:00:22.2]} 67. a8=Q {[%clk 0:01:20]} 67... Rd1 {[%clk
0:00:11.1]} 68. Qd8 {[%clk 0:01:21]} 68... h1=Q {[%clk 0:00:12.2]} 69. Qf6+
{[%clk 0:01:21.9]} 69... Kh7 {[%clk 0:00:13.3]} 70. Qxf7+ {[%clk 0:01:22.3]}
70... Kh6 {[%clk 0:00:14.9]} 71. Qf4+ {[%clk 0:01:19.6]} 71... g5 {[%clk
0:00:15.1]} 72. Qf6+ {[%clk 0:01:19.8]} 72... Kh5 {[%clk 0:00:16.6]} 73. Qf7+
{[%clk 0:01:13.2]} 73... Kh4 {[%clk 0:00:17.2]} 74. Qh7+ {[%clk 0:01:09.2]}
74... Kg4 {[%clk 0:00:16.5]} 75. Qxh1 {[%clk 0:01:07.7]} 75... Bxh1 {[%clk
0:00:16.2]} 76. Ke3 {[%clk 0:00:48.2]} 76... Re1+ {[%clk 0:00:15.2]} 77. Kd2
{[%clk 0:00:41.2]} 77... Rg1 {[%clk 0:00:15]} 78. Ke3 {[%clk 0:00:37.1]} 78...
Rg3+ {[%clk 0:00:15.1]} 79. Kd4 {[%clk 0:00:33.4]} 79... Rh3 {[%clk 0:00:15.8]}
80. Ra6 {[%clk 0:00:32.4]} 80... Rh6 {[%clk 0:00:16.8]} 81. Bc4 {[%clk
0:00:33.4]} 81... Kf4 {[%clk 0:00:18.3]} 82. Rxe6 {[%clk 0:00:33.5]} 82... Rxe6
{[%clk 0:00:18]} 83. Bxe6 {[%clk 0:00:35.4]} 83... Bxe4 {[%clk 0:00:19.1]} 84.
Bd7 {[%clk 0:00:29.5]} 84... Bg6 {[%clk 0:00:19.5]} 85. Kd5 {[%clk 0:00:28.9]}
85... Bh5 {[%clk 0:00:19.5]} 86. Kd6 {[%clk 0:00:29.4]} 86... Bg6 {[%clk
0:00:17.3]} 87. e6 {[%clk 0:00:28.4]} 87... g4 {[%clk 0:00:18.7]} 88. e7 {[%clk
0:00:29.8]} 88... g3 {[%clk 0:00:19.9]} 89. Bc6 {[%clk 0:00:31.4]} 89... Bh5
{[%clk 0:00:21]} 90. Kd7 {[%clk 0:00:30.9]} 90... Ke3 {[%clk 0:00:21.9]} 91.
e8=Q+ {[%clk 0:00:31.3]} 91... Bxe8+ {[%clk 0:00:22.5]} 92. Kxe8 {[%clk
0:00:33.2]} 92... Kd4 {[%clk 0:00:24.1]} 93. Ke7 {[%clk 0:00:34.6]} 93... Kc5
{[%clk 0:00:25.6]} 94. Bg2 {[%clk 0:00:35.6]} 94... Kd4 {[%clk 0:00:27.2]} 95.
Kf6 {[%clk 0:00:37]} 95... Ke3 {[%clk 0:00:28.8]} 96. Kg5 {[%clk 0:00:38.5]}
96... Kf2 {[%clk 0:00:30.5]} 97. Bc6 {[%clk 0:00:39.9]} 97... Ke3 {[%clk
0:00:31.9]} 98. Kh4 {[%clk 0:00:40.8]} 98... Kf2 {[%clk 0:00:33.5]} 99. Kh3
{[%clk 0:00:42.2]} 99... g2 {[%clk 0:00:35.4]} 100. Bxg2 {[%clk 0:00:42.8]}
1/2-1/2

[Event "*** Titled Tuesday Blitz"]
[Site "Chess.com"]
[Date "2019.10.01"]
[Round "10"]
[White "Jospem"]
[Black "GMKrikor"]
[Result "1/2-1/2"]
[WhiteElo "2892"]
[BlackElo "2813"]
[TimeControl "180+2"]
[EndTime "15:31:44 PDT"]
[Termination "Game drawn by repetition"]

1. c4 {[%clk 0:03:01.9]} 1... c6 {[%clk 0:03:01.3]} 2. Nf3 {[%clk 0:03:03.2]}
2... d5 {[%clk 0:02:59]} 3. g3 {[%clk 0:03:04.6]} 3... Nf6 {[%clk 0:02:50.5]} 4.
Bg2 {[%clk 0:03:05.6]} 4... dxc4 {[%clk 0:02:50.6]} 5. O-O {[%clk 0:03:06.3]}
5... Nbd7 {[%clk 0:02:45.8]} 6. Qc2 {[%clk 0:03:00.7]} 6... Nb6 {[%clk
0:02:45.6]} 7. Na3 {[%clk 0:03:00.7]} 7... g6 {[%clk 0:02:27.2]} 8. Nxc4 {[%clk
0:03:00.9]} 8... Bg7 {[%clk 0:02:28.6]} 9. b3 {[%clk 0:02:59.9]} 9... O-O {[%clk
0:02:18.1]} 10. Bb2 {[%clk 0:03:00.6]} 10... Be6 {[%clk 0:02:11.1]} 11. d3
{[%clk 0:03:01]} 11... Ne8 {[%clk 0:01:48.7]} 12. Bxg7 {[%clk 0:02:54.2]} 12...
Nxg7 {[%clk 0:01:49.9]} 13. b4 {[%clk 0:02:54.9]} 13... Nf5 {[%clk 0:01:43.5]}
14. Na5 {[%clk 0:02:54.2]} 14... Rb8 {[%clk 0:01:31.4]} 15. e3 {[%clk
0:02:55.3]} 15... Nd5 {[%clk 0:01:26]} 16. a3 {[%clk 0:02:53.7]} 16... Ndxe3
{[%clk 0:01:25]} 17. fxe3 {[%clk 0:02:55.6]} 17... Nxe3 {[%clk 0:01:26.9]} 18.
Qe2 {[%clk 0:02:52]} 18... Nxf1 {[%clk 0:01:28]} 19. Rxf1 {[%clk 0:02:53.9]}
19... Bf5 {[%clk 0:01:20.9]} 20. d4 {[%clk 0:02:47]} 20... Qd7 {[%clk
0:01:14.3]} 21. Qe3 {[%clk 0:02:41.1]} 21... Rbd8 {[%clk 0:00:54.7]} 22. Nc4
{[%clk 0:02:37.9]} 22... Be6 {[%clk 0:00:48.3]} 23. Nce5 {[%clk 0:02:35.5]}
23... Qd6 {[%clk 0:00:49]} 24. Re1 {[%clk 0:02:32]} 24... Bd5 {[%clk 0:00:48]}
25. Ng4 {[%clk 0:02:16.3]} 25... Bxf3 {[%clk 0:00:42.6]} 26. Bxf3 {[%clk
0:02:18.2]} 26... h5 {[%clk 0:00:32]} 27. Nf2 {[%clk 0:02:10.1]} 27... Qxd4
{[%clk 0:00:26.7]} 28. Qxd4 {[%clk 0:02:10.9]} 28... Rxd4 {[%clk 0:00:28.6]} 29.
Rxe7 {[%clk 0:02:12.3]} 29... a5 {[%clk 0:00:29.5]} 30. Rxb7 {[%clk 0:02:07.2]}
30... axb4 {[%clk 0:00:29.6]} 31. axb4 {[%clk 0:02:09.1]} 31... Rc8 {[%clk
0:00:22.2]} 32. Ne4 {[%clk 0:01:57.2]} 32... Ra8 {[%clk 0:00:23.3]} 33. Kf2
{[%clk 0:01:40.7]} 33... Ra4 {[%clk 0:00:19.6]} 34. Ng5 {[%clk 0:00:55.4]} 34...
Rdxb4 {[%clk 0:00:15.7]} 35. Re7 {[%clk 0:00:37]} 35... Rb2+ {[%clk 0:00:14.6]}
36. Be2 {[%clk 0:00:38.4]} 36... Raa2 {[%clk 0:00:08.1]} 37. h4 {[%clk
0:00:37.9]} 37... c5 {[%clk 0:00:09.1]} 38. Kf3 {[%clk 0:00:31.9]} 38... Ra3+
{[%clk 0:00:10]} 39. Kf2 {[%clk 0:00:15.5]} 39... Raa2 {[%clk 0:00:11.6]} 40.
Re4 {[%clk 0:00:15.5]} 40... c4 {[%clk 0:00:11.9]} 41. Nf3 {[%clk 0:00:05.6]}
41... c3 {[%clk 0:00:12.3]} 42. Re8+ {[%clk 0:00:07.2]} 42... Kg7 {[%clk
0:00:13.4]} 43. Nd4 {[%clk 0:00:08.8]} 43... Rd2 {[%clk 0:00:13.6]} 44. Ke3
{[%clk 0:00:08.4]} 44... Rdb2 {[%clk 0:00:09.2]} 45. Rc8 {[%clk 0:00:09.2]}
45... Ra3 {[%clk 0:00:06.7]} 46. Bd3 {[%clk 0:00:10.3]} 46... Rg2 {[%clk
0:00:07.3]} 47. Ne2 {[%clk 0:00:10.3]} 47... Rb3 {[%clk 0:00:03.6]} 48. Kf3
{[%clk 0:00:10.6]} 48... Rh2 {[%clk 0:00:05.3]} 49. Rxc3 {[%clk 0:00:11]} 49...
Rxc3 {[%clk 0:00:05.7]} 50. Nxc3 {[%clk 0:00:12.9]} 50... Rd2 {[%clk 0:00:07]}
51. Ke3 {[%clk 0:00:13.3]} 51... Rb2 {[%clk 0:00:08.1]} 52. Ne2 {[%clk
0:00:13.5]} 52... Rb8 {[%clk 0:00:08.9]} 53. Nd4 {[%clk 0:00:14]} 53... Re8+
{[%clk 0:00:10]} 54. Kd2 {[%clk 0:00:14.1]} 54... Rd8 {[%clk 0:00:11.6]} 55. Nf3
{[%clk 0:00:15]} 55... Kf6 {[%clk 0:00:12.4]} 56. Ke3 {[%clk 0:00:16.2]} 56...
Re8+ {[%clk 0:00:13.6]} 57. Kf4 {[%clk 0:00:17.4]} 57... Rd8 {[%clk 0:00:14]}
58. Bc4 {[%clk 0:00:17.7]} 58... Ke7 {[%clk 0:00:14.3]} 59. Ke3 {[%clk
0:00:17.7]} 59... f6 {[%clk 0:00:14.3]} 60. Bd3 {[%clk 0:00:18.4]} 60... Kf7
{[%clk 0:00:14.8]} 61. Nd4 {[%clk 0:00:18]} 61... Re8+ {[%clk 0:00:15.6]} 62.
Kf4 {[%clk 0:00:18.8]} 62... Kg7 {[%clk 0:00:15.2]} 63. Bc4 {[%clk 0:00:19.3]}
63... Ra8 {[%clk 0:00:15.6]} 64. Bd3 {[%clk 0:00:11.8]} 64... Ra4 {[%clk
0:00:15.2]} 65. Ke3 {[%clk 0:00:12.8]} 65... Ra3 {[%clk 0:00:14.3]} 66. Ke4
{[%clk 0:00:14]} 66... Ra4 {[%clk 0:00:14.4]} 67. Ke3 {[%clk 0:00:14.9]} 67...
Ra3 {[%clk 0:00:08.7]} 68. Ne6+ {[%clk 0:00:15.8]} 68... Kf7 {[%clk 0:00:08.1]}
69. Nf4 {[%clk 0:00:15.1]} 69... f5 {[%clk 0:00:03.4]} 70. Kd4 {[%clk
0:00:13.1]} 70... Kf6 {[%clk 0:00:04]} 71. Nd5+ {[%clk 0:00:13.3]} 71... Ke6
{[%clk 0:00:05.7]} 72. Nf4+ {[%clk 0:00:12]} 72... Kf6 {[%clk 0:00:07.3]} 73.
Ke3 {[%clk 0:00:12.7]} 73... Ra1 {[%clk 0:00:05.9]} 74. Bb5 {[%clk 0:00:11.2]}
74... Ra3+ {[%clk 0:00:04.6]} 75. Kf2 {[%clk 0:00:12.3]} 75... Ra8 {[%clk
0:00:06.5]} 76. Bc6 {[%clk 0:00:11.3]} 76... Rc8 {[%clk 0:00:05.5]} 77. Bb7
{[%clk 0:00:12]} 77... Rb8 {[%clk 0:00:05.3]} 78. Bc6 {[%clk 0:00:12.9]} 78...
Rc8 {[%clk 0:00:06.8]} 79. Bd7 {[%clk 0:00:13.4]} 79... Rd8 {[%clk 0:00:07.1]}
80. Bb5 {[%clk 0:00:13.5]} 80... Rb8 {[%clk 0:00:08.1]} 81. Bc4 {[%clk
0:00:14.1]} 81... Rc8 {[%clk 0:00:09]} 82. Bb3 {[%clk 0:00:12.8]} 82... Rb8
{[%clk 0:00:09.3]} 83. Bd1 {[%clk 0:00:13]} 83... Rb2+ {[%clk 0:00:07.9]} 84.
Kf3 {[%clk 0:00:13.9]} 84... Ra2 {[%clk 0:00:08]} 85. Be2 {[%clk 0:00:13.8]}
85... Ra3+ {[%clk 0:00:09.3]} 86. Kg2 {[%clk 0:00:14.9]} 86... Ra2 {[%clk
0:00:09.4]} 87. Kh3 {[%clk 0:00:15.7]} 87... Ra8 {[%clk 0:00:08.3]} 88. Bf3
{[%clk 0:00:16.7]} 88... Rb8 {[%clk 0:00:08.5]} 89. Bg2 {[%clk 0:00:17]} 89...
Rd8 {[%clk 0:00:08.7]} 90. Nd5+ {[%clk 0:00:17.6]} 90... Ke5 {[%clk 0:00:09.5]}
91. Nf4 {[%clk 0:00:18.7]} 91... Kf6 {[%clk 0:00:11]} 92. Bf3 {[%clk 0:00:18.7]}
92... Rb8 {[%clk 0:00:11.2]} 93. Bc6 {[%clk 0:00:19.3]} 93... Rc8 {[%clk
0:00:10.9]} 94. Bb5 {[%clk 0:00:20.2]} 94... Rb8 {[%clk 0:00:12]} 95. Bc4 {[%clk
0:00:21.2]} 95... Rc8 {[%clk 0:00:13.2]} 96. Be6 {[%clk 0:00:22]} 96... Re8
{[%clk 0:00:11.8]} 97. Bd7 {[%clk 0:00:18.9]} 97... Rd8 {[%clk 0:00:12.7]} 98.
Bb5 {[%clk 0:00:20]} 98... Rb8 {[%clk 0:00:13.4]} 99. Be2 {[%clk 0:00:21.3]}
99... Ra8 {[%clk 0:00:13.6]} 100. Bf3 {[%clk 0:00:22.3]} 100... Rb8 {[%clk
0:00:14]} 1/2-1/2

[Event "*** Titled Tuesday Blitz"]
[Site "Chess.com"]
[Date "2019.10.01"]
[Round "10"]
[White "kosya4ok"]
[Black "champ2005"]
[Result "1-0"]
[WhiteElo "2652"]
[BlackElo "2809"]
[TimeControl "180+2"]
[EndTime "15:33:30 PDT"]
[Termination "kosya4ok won by resignation"]

1. d4 {[%clk 0:03:01.9]} 1... Nf6 {[%clk 0:03:00]} 2. c4 {[%clk 0:03:02.7]} 2...
Nc6 {[%clk 0:03:01.3]} 3. Nc3 {[%clk 0:03:00.4]} 3... e6 {[%clk 0:03:00.3]} 4.
a3 {[%clk 0:02:59.1]} 4... d5 {[%clk 0:02:54.6]} 5. Nf3 {[%clk 0:02:51.4]} 5...
dxc4 {[%clk 0:02:51.5]} 6. Qa4 {[%clk 0:02:49.3]} 6... Bd6 {[%clk 0:02:47]} 7.
e4 {[%clk 0:02:47]} 7... Be7 {[%clk 0:02:42.9]} 8. Bxc4 {[%clk 0:02:01.6]} 8...
O-O {[%clk 0:02:43]} 9. Be2 {[%clk 0:01:58.4]} 9... a6 {[%clk 0:02:39.1]} 10.
O-O {[%clk 0:01:56.2]} 10... Rb8 {[%clk 0:02:39.7]} 11. Rd1 {[%clk 0:01:55.3]}
11... b5 {[%clk 0:02:40.3]} 12. Qc2 {[%clk 0:01:56.9]} 12... Bb7 {[%clk
0:02:40.9]} 13. Be3 {[%clk 0:01:56.3]} 13... Na5 {[%clk 0:02:38.1]} 14. Ne5
{[%clk 0:01:52.4]} 14... Qc8 {[%clk 0:02:18]} 15. b4 {[%clk 0:01:39.3]} 15...
Nc6 {[%clk 0:02:17.1]} 16. Nxc6 {[%clk 0:01:29.3]} 16... Bxc6 {[%clk 0:02:19]}
17. f3 {[%clk 0:01:29.6]} 17... Bb7 {[%clk 0:02:18.4]} 18. Na2 {[%clk
0:01:30.1]} 18... Qd7 {[%clk 0:02:17.5]} 19. Nc1 {[%clk 0:01:30.6]} 19... Nh5
{[%clk 0:02:08.3]} 20. Nb3 {[%clk 0:01:26.6]} 20... f5 {[%clk 0:02:08.9]} 21.
Rac1 {[%clk 0:01:06.5]} 21... Rbc8 {[%clk 0:02:02.4]} 22. Na5 {[%clk 0:00:55.6]}
22... Ba8 {[%clk 0:01:55.9]} 23. Nc6 {[%clk 0:00:57]} 23... fxe4 {[%clk
0:01:48.9]} 24. fxe4 {[%clk 0:00:58]} 24... Nf4 {[%clk 0:01:48.1]} 25. Bf3
{[%clk 0:00:55.5]} 25... Bg5 {[%clk 0:01:44.1]} 26. Kh1 {[%clk 0:00:30.4]} 26...
Nh3 {[%clk 0:01:39.2]} 27. Ne5 {[%clk 0:00:15.3]} 27... Qe7 {[%clk 0:01:30.7]}
28. Qd2 {[%clk 0:00:12.9]} 28... Bxe4 {[%clk 0:01:08.7]} 29. Bxe4 {[%clk
0:00:07.4]} 29... Nf2+ {[%clk 0:01:09.8]} 30. Bxf2 {[%clk 0:00:05.5]} 30... Bxd2
{[%clk 0:01:09.2]} 31. Rxd2 {[%clk 0:00:07.4]} 31... Qg5 {[%clk 0:01:04.7]} 32.
Rcd1 {[%clk 0:00:07.4]} 32... Rcd8 {[%clk 0:01:03.5]} 33. Kg1 {[%clk 0:00:08.7]}
33... Rd6 {[%clk 0:00:42.9]} 34. h3 {[%clk 0:00:09.1]} 34... Rfd8 {[%clk
0:00:44.1]} 35. Nf3 {[%clk 0:00:09.7]} 35... Qf4 {[%clk 0:00:40.7]} 36. Re2
{[%clk 0:00:11.2]} 36... h6 {[%clk 0:00:39.8]} 37. Rdd2 {[%clk 0:00:12.5]} 37...
a5 {[%clk 0:00:38.3]} 38. Rc2 {[%clk 0:00:11.9]} 38... axb4 {[%clk 0:00:36]} 39.
axb4 {[%clk 0:00:13.8]} 39... Ra6 {[%clk 0:00:36.3]} 40. Re1 {[%clk 0:00:15.2]}
40... Qd6 {[%clk 0:00:32]} 41. Rc5 {[%clk 0:00:14.5]} 41... Ra4 {[%clk
0:00:28.7]} 42. Rxb5 {[%clk 0:00:13.6]} 42... Rxb4 {[%clk 0:00:28.5]} 43. Rxb4
{[%clk 0:00:15.1]} 43... Qxb4 {[%clk 0:00:30.4]} 44. Rc1 {[%clk 0:00:15.8]}
44... Qd6 {[%clk 0:00:26.1]} 45. Ne5 {[%clk 0:00:15.1]} 45... Rf8 {[%clk
0:00:21.6]} 46. Nf3 {[%clk 0:00:15.2]} 46... Qf4 {[%clk 0:00:21.7]} 47. Re1
{[%clk 0:00:16.6]} 47... Rb8 {[%clk 0:00:21.6]} 48. Bd3 {[%clk 0:00:16.6]} 48...
Re8 {[%clk 0:00:18.6]} 49. Bc4 {[%clk 0:00:17.4]} 49... Qd6 {[%clk 0:00:20]} 50.
Rc1 {[%clk 0:00:14.1]} 50... Qa3 {[%clk 0:00:20.5]} 51. Re1 {[%clk 0:00:14.5]}
51... Qc3 {[%clk 0:00:19.3]} 52. Bxe6+ {[%clk 0:00:14.4]} 52... Kh8 {[%clk
0:00:19.7]} 53. d5 {[%clk 0:00:15.9]} 53... Qf6 {[%clk 0:00:15.5]} 54. Bd4
{[%clk 0:00:15]} 54... Qf8 {[%clk 0:00:16]} 55. Rc1 {[%clk 0:00:15.8]} 55... Qd6
{[%clk 0:00:14.6]} 56. Be5 {[%clk 0:00:16.5]} 56... Qb6+ {[%clk 0:00:15.3]} 57.
Kh2 {[%clk 0:00:16.3]} 57... c5 {[%clk 0:00:13.7]} 58. Bg4 {[%clk 0:00:03.1]}
58... Rxe5 {[%clk 0:00:12.2]} 59. Nxe5 {[%clk 0:00:05]} 59... Qd6 {[%clk
0:00:13.5]} 60. Re1 {[%clk 0:00:06.4]} 60... Qxd5 {[%clk 0:00:13.6]} 61. Nf3
{[%clk 0:00:06.9]} 61... c4 {[%clk 0:00:13.3]} 62. Re8+ {[%clk 0:00:08.3]} 62...
Kh7 {[%clk 0:00:14.4]} 63. Re5 {[%clk 0:00:08.5]} 63... Qd6 {[%clk 0:00:14.4]}
64. Kg1 {[%clk 0:00:08.7]} 64... c3 {[%clk 0:00:15.5]} 65. Bf5+ {[%clk
0:00:10.1]} 65... g6 {[%clk 0:00:16.9]} 66. Bc2 {[%clk 0:00:10.3]} 66... Kg7
{[%clk 0:00:17.7]} 67. Re2 {[%clk 0:00:10.6]} 67... g5 {[%clk 0:00:16.7]} 68.
Kf2 {[%clk 0:00:11.9]} 68... Qc5+ {[%clk 0:00:17.6]} 69. Re3 {[%clk 0:00:12.1]}
69... h5 {[%clk 0:00:16.9]} 70. Ke2 {[%clk 0:00:13.5]} 70... g4 {[%clk
0:00:17.8]} 71. Ne1 {[%clk 0:00:15.1]} 71... Qd5 {[%clk 0:00:15.8]} 72. Rxc3
{[%clk 0:00:14.4]} 72... Qe5+ {[%clk 0:00:17]} 73. Re3 {[%clk 0:00:15.7]} 73...
Qd4 {[%clk 0:00:17.6]} 74. Bd3 {[%clk 0:00:16.6]} 74... Qb2+ {[%clk 0:00:18.4]}
75. Nc2 {[%clk 0:00:18.2]} 75... Qb7 {[%clk 0:00:18.3]} 76. Ne1 {[%clk
0:00:17.3]} 76... Kf6 {[%clk 0:00:18.5]} 77. hxg4 {[%clk 0:00:18]} 77... hxg4
{[%clk 0:00:20.4]} 78. Re4 {[%clk 0:00:19.5]} 78... Kg5 {[%clk 0:00:21.3]} 79.
Re3 {[%clk 0:00:19.3]} 79... Qb2+ {[%clk 0:00:20]} 80. Kf1 {[%clk 0:00:20.4]}
80... Qf6+ {[%clk 0:00:19.8]} 81. Ke2 {[%clk 0:00:15.6]} 81... Kh4 {[%clk
0:00:18.5]} 82. Kd2 {[%clk 0:00:09.4]} 82... Qb2+ {[%clk 0:00:16.6]} 83. Nc2
{[%clk 0:00:08.5]} 83... Qb7 {[%clk 0:00:16]} 84. Re2 {[%clk 0:00:08.9]} 84...
Kg3 {[%clk 0:00:14.4]} 85. Ne3 {[%clk 0:00:09.9]} 85... Qb4+ {[%clk 0:00:14.8]}
86. Kd1 {[%clk 0:00:10]} 86... Qb3+ {[%clk 0:00:14.4]} 87. Bc2 {[%clk 0:00:11]}
87... Qb7 {[%clk 0:00:12]} 88. Nf5+ {[%clk 0:00:11.5]} 88... Kf4 {[%clk
0:00:12.7]} 89. Rf2+ {[%clk 0:00:11.7]} 89... Ke5 {[%clk 0:00:13.5]} 90. g3
{[%clk 0:00:10.9]} 90... Qh1+ {[%clk 0:00:10.6]} 91. Ke2 {[%clk 0:00:11.4]}
91... Qc6 {[%clk 0:00:08.6]} 92. Bd3 {[%clk 0:00:11.7]} 92... Qc7 {[%clk
0:00:06.8]} 93. Ne3 {[%clk 0:00:12.7]} 93... Kd4 {[%clk 0:00:07.6]} 94. Rf4+
{[%clk 0:00:13.9]} 94... Ke5 {[%clk 0:00:07]} 95. Nxg4+ {[%clk 0:00:15.4]} 95...
Ke6 {[%clk 0:00:08.3]} 96. Re4+ {[%clk 0:00:15.1]} 96... Kd6 {[%clk 0:00:06.6]}
97. Rd4+ {[%clk 0:00:16]} 97... Ke6 {[%clk 0:00:06.8]} 98. Re4+ {[%clk
0:00:17.5]} 98... Kd6 {[%clk 0:00:07.8]} 99. Ne5 {[%clk 0:00:19]} 99... Qc1
{[%clk 0:00:07]} 100. g4 {[%clk 0:00:20]} 100... Qg1 {[%clk 0:00:07.2]} 101. Kf3
{[%clk 0:00:19.2]} 101... Qd1+ {[%clk 0:00:07.4]} 102. Ke3 {[%clk 0:00:18]}
102... Qe1+ {[%clk 0:00:07.9]} 103. Kd4 {[%clk 0:00:18.3]} 103... Qa1+ {[%clk
0:00:08.2]} 104. Ke3 {[%clk 0:00:18.3]} 104... Qe1+ {[%clk 0:00:08.2]} 105. Kf3
{[%clk 0:00:19.6]} 105... Qh1+ {[%clk 0:00:07.9]} 106. Kg3 {[%clk 0:00:20.4]}
106... Qg1+ {[%clk 0:00:09.1]} 107. Kf4 {[%clk 0:00:21.7]} 107... Qc1+ {[%clk
0:00:09.4]} 108. Kf5 {[%clk 0:00:22.8]} 108... Qc8+ {[%clk 0:00:07.8]} 109. Kg5
{[%clk 0:00:24]} 109... Qd8+ {[%clk 0:00:08.4]} 110. Kf4 {[%clk 0:00:25.4]}
110... Qf6+ {[%clk 0:00:08.8]} 111. Kg3 {[%clk 0:00:24.4]} 111... Qg7 {[%clk
0:00:07.3]} 112. Nf3 {[%clk 0:00:24.1]} 112... Kd5 {[%clk 0:00:07.8]} 113. g5
{[%clk 0:00:24]} 113... Qa1 {[%clk 0:00:08.9]} 114. Rd4+ {[%clk 0:00:21.2]}
114... Kc5 {[%clk 0:00:09.1]} 115. g6 {[%clk 0:00:18.4]} 115... Qc1 {[%clk
0:00:10.4]} 116. Rc4+ {[%clk 0:00:17.6]} 1-0